{"text_format":"1","workbook":"xlsx","n_sheets":4,"sheets":["Directives","Demande d'attestation","Annexe A","Annexe B"],"not_rendered":{"charts":0,"images":1,"macros":0,"external_links":1,"defined_names":28,"comments":1,"pivot_tables":0},"unopened":[],"bounds":{"document_bytes":16777216,"sheet_cells":100000,"rows_first":2000,"rows_last":500,"rows_between":2000,"halvings":0,"cell_chars":16384,"cell_head_chars":4096},"cells_cut":0,"cells_raw":0,"read":"whole","date_system":"1900"}

{"sheet":"Directives","index":0,"n_rows":129,"n_cols":14,"rows_kept":129,"cut":false,"hidden":false,"merged":[[22,0,22,37],[23,0,23,37],[13,0,13,37],[14,0,14,37],[15,0,15,37],[16,0,16,37],[17,0,17,37],[18,0,18,37],[19,0,19,37],[20,0,20,37],[21,0,21,37],[117,0,117,37],[118,0,118,37],[119,0,119,37],[120,0,120,37],[121,1,121,37],[129,0,129,37],[122,0,122,37],[123,1,123,37],[124,0,124,37],[125,0,125,37],[126,1,126,37],[127,0,127,37],[128,1,128,37],[109,0,109,37],[110,0,110,37],[111,0,111,37],[112,0,112,37],[113,0,113,37],[114,0,114,37],[115,0,115,37],[116,0,116,37],[100,1,100,37],[101,0,101,37],[102,0,102,37],[103,0,103,37],[104,1,104,37],[105,0,105,37],[106,0,106,37],[107,0,107,37],[108,0,108,37],[92,0,92,37],[93,0,93,37],[94,1,94,37],[95,0,95,37],[96,0,96,37],[97,0,97,37],[98,0,98,3],[98,4,98,37],[99,0,99,37],[83,0,83,37],[84,0,84,37],[85,0,85,37],[86,1,86,37],[87,0,87,37],[88,0,88,37],[89,0,89,37],[90,1,90,37],[91,0,91,37],[75,0,75,37],[76,0,76,37],[77,0,77,37],[78,0,78,4],[78,5,78,37],[79,0,79,37],[80,0,80,37],[81,0,81,37],[82,1,82,37],[68,0,68,4],[68,5,68,37],[69,0,69,37],[70,0,70,37],[71,0,71,37],[72,0,72,37],[73,0,73,37],[74,0,74,4],[74,5,74,37],[60,0,60,37],[61,0,61,37],[62,0,62,4],[62,5,62,37],[63,0,63,37],[64,0,64,37],[65,0,65,37],[66,0,66,37],[67,0,67,37],[53,0,53,37],[54,0,54,37],[55,0,55,37],[56,0,56,2],[56,3,56,37],[57,0,57,37],[58,0,58,4],[58,5,58,37],[59,0,59,37],[32,0,32,37],[33,0,33,37],[46,1,46,37],[47,0,47,37],[48,0,48,37],[49,0,49,37],[50,0,50,37],[51,0,51,37],[52,0,52,37],[41,1,41,37],[42,0,42,37],[44,0,44,37],[45,0,45,37],[43,0,43,37],[36,0,36,37],[37,0,37,37],[38,0,38,37],[34,0,34,37],[35,0,35,37],[130,0,130,37],[0,0,0,12],[0,13,0,37],[1,0,2,37],[3,0,3,37],[4,0,4,37],[31,0,31,37],[6,0,6,37],[5,0,5,37],[7,0,7,37],[8,0,8,37],[9,0,9,37],[10,0,10,37],[11,0,11,37],[12,0,12,37],[24,0,24,37],[25,0,25,37],[26,0,26,37],[27,0,27,37],[28,0,28,37],[29,0,29,37],[30,0,30,37],[39,0,39,37],[40,0,40,37]]}
[null,null,null,null,null,null,null,null,null,null,null,null,null,"Crédits d’impôt disponibles dans\n les régions ressources\nVersion : 2023-09-22"]
["Directives – Demande d'attestation d'employés - Année civile de référence"]
[]
["Ce document s’adresse à une société titulaire d’un certificat initial à l’un des crédits d’impôt disponibles dans les régions ressources, soit le crédit d’impôt pour les activités de transformation dans les régions ressources, le crédit d’impôt pour la Gaspésie et certaines régions maritimes du Québec et le crédit d’impôt pour la Vallée de l’aluminium. Il décrit la procédure à suivre pour remplir la demande d'attestation d'employés pour l'année civile de référence.  La société doit par la suite réclamer son crédit d’impôt à Revenu Québec en produisant une déclaration de revenus CO-17 et les annexes afférentes dans le délai prévu."]
[]
["Nous vous conseillons fortement de consulter la fiche détaillée relative au crédit d’impôt visé par la demande dans notre site Internet avant de remplir ce formulaire. Assurez-vous d’utiliser la dernière version à jour du formulaire.  Par ailleurs, vous pouvez consulter le chapitre XI, de l'annexe A de la Loi concernant les paramètres sectoriels de certaines mesures fiscales qui incluent tous les paramètres sectoriels applicables à ces mesures. "]
[]
["DÉLAIS APPLICABLES AUX EXERCICES FINANCIERS DÉBUTANT AVANT LE 27 MARS 2015"]
["En vertu de la Loi sur les impôts, la société a dix-huit (18) mois pour produire une demande de crédit d'impôt à Revenu Québec, laquelle doit inclure le certificat d’entreprise reconnue et les attestations d’employés délivrés par Investissement Québec. Ce délai est de rigueur, mais pourrait être prorogé par Revenu Québec dans certaines situations et sous certaines conditions, notamment lorsqu’Investissement Québec reçoit une demande complète au plus tard le dernier jour du quinzième (15e) mois suivant la fin de l’exercice financier de la société. "]
[]
["Nous tenons à préciser que, de façon générale, Investissement Québec n’accorde aucune priorité dans le traitement des dossiers.  Ainsi, lorsque la demande de certificat et d'attestation est déposée après la fin du quinzième (15e) mois suivant la fin de l’exercice financier de la société, Investissement Québec ne peut garantir  que la société obtiendra son certificat et ses attestations avant l’expiration de son délai de dix-huit (18) mois suivant la fin de son exercice financier.   "]
[]
["Par conséquent, nous vous recommandons fortement de transmettre la demande de certificat d’entreprise reconnue et d’attestation d’employés à Investissement Québec avant la fin du quinzième (15e) mois suivant la fin de l’exercice financier de la société au cours duquel se termine l’année civile pour laquelle la société demande un crédit d’impôt. À titre d’exemple, si l’exercice financier se termine le 31 mars 2015, vous devez transmettre votre demande de certificat d’entreprise reconnue et d’attestation d’employés relative à l’année civile 2014, au plus tôt le 1er avril 2015 et au plus tard le 30 juin 2016."]
[]
["DÉLAIS APPLICABLES AUX EXERCICES FINANCIERS DÉBUTANT APRÈS LE 26 MARS 2015"]
["À la suite du budget 2015-2016 du 26 mars 2015, des modifications ont été apportées aux règles afférentes aux délais relatifs à une demande de crédit d’impôt remboursable pour les exercices financiers commençant après le 26 mars 2015."]
[]
["Dépôt d'une demande d'attestation annuelle à Investissement Québec"]
["La société doit présenter sa demande d’attestation annuelle à Investissement Québec avant la fin du 15e mois suivant la fin de l’exercice financier de la société. Si la demande d’attestation annuelle est présentée après cette date, mais avant l’expiration du délai de 18 mois suivant la fin de l’exercice financier de la société, Investissement Québec peut, de manière discrétionnaire, accepter la demande d’attestation si elle est d’avis que les motifs de retard sont raisonnables et justifient une telle demande « tardive ». Par conséquent, si vous êtes dans cette situation, veuillez joindre un document faisant état de vos motifs de retard."]
[]
["Toutefois, une demande d'attestation déposée à Investissement Québec après l'expiration du délai de 18 mois sera refusée."]
[]
["Production des documents à Revenu Québec"]
["La société doit présenter sa demande de crédit d’impôt et les attestations à Revenu Québec à la plus tardive des dates suivantes :\n   - Le dernier jour du 18e mois suivant la fin de l’exercice financier visé de la société;\n   - Le dernier jour de la période de 3 mois suivant la date de délivrance des attestations d’Investissement Québec."]
[]
["De plus, seules les demandes complètes seront traitées. Toute demande reçue avant la fin de l'exercice financier visé sera retournée à l'expéditeur."]
[]
["Une demande complète* inclut :\n   - Demande de certificat d’entreprise reconnue et d'attestation d’employés dûment complétée et signée;\n   - Annexes A et B;\n   - États financiers non consolidés (bilan et états des résultats) de la société pour l’exercice financier visé.**\n"]
["Notez qu’Investissement Québec indique la date de réception de demande complète sur les attestations. Par conséquent, il est de votre responsabilité de vous assurer de respecter les délais prescrits par Revenu Québec puisque la société pourrait perdre  le droit de recevoir son crédit d’impôt pour une année donnée, le cas échéant. "]
["* Veuillez noter que les documents exigés aux fins d’une demande complète ne dispense pas la société de l’obligation de fournir les documents mentionnés à la section 5 de la demande de certificat d’entreprise reconnue et d'attestation d'employés.   \n** Les états financiers peuvent être à l’état projet à condition que vous nous fassiez parvenir une version finale dès qu’ils seront disponibles"]
[]
["INFORMATION POUR REMPLIR LES FORMULAIRES"]
[]
["Demande d'attestation d'employés pour l'année civile de référence"]
[]
["Vous devez remplir ce formulaire pour l’année civile de référence de la société admissible."]
[]
["Annexe A\n\nVeuillez fournir les renseignements demandés (nom, numéro d’assurance sociale, poste, adresse de l’établissement, période d’emploi, nombre de périodes de paie, salaire total, salaire admissible) pour chaque employé de la société qui travaille dans des établissements situés dans les régions admissibles aux crédits disponibles dans les régions ressources."]
[]
["Pour des raisons administratives, il est important de suivre la forme indiquée dans le formulaire de demande et dans les annexes."]
[]
[null,"Période d’emploi "]
[]
["La période d’emploi doit être comprise dans l’année civile visée par la demande, soit entre le 1er janvier et le 31 décembre. Dans le cas où la société ferme ses portes pendant certaines périodes de l’année (par exemple, pendant le temps des fêtes), on doit inclure ces congés dans la période d’emploi si l'employé a conservé son lien d’emploi avec la société. Ainsi, si la société ferme ses portes du 25 décembre au 5 janvier, la date de fin de la période d’emploi sera le 31 décembre et la date de début de la période d’emploi sera le 1er janvier si l'employé était à l’emploi de la société au début de l’année civile."]
["Dès que le lien d’emploi avec la société est rompu, l'employé n'est plus attesté même si des sommes lui sont versées après son départ (comme une paie de vacances).\n\nPar exemple, si un employé prend sa retraite et que sa dernière journée de travail est le 4 décembre 2014, la dernière période comptée sera celle qui comprend le 4 décembre 2014. Si des sommes lui ont été versées avant la fin de l’année 2014 et même en 2015, l'employé ne pourra pas être attesté durant ces périodes de paie et ne pourra faire partie de la demande visant l’année civile 2015."]
[]
[null,"Nombre total de périodes de paie travaillées"]
[]
["Pour chaque employé, indiquez le nombre de périodes de paie travaillées pendant la période d’emploi mentionnée. Dans certains cas, vous devrez inclure les périodes où l’employé s'est absenté du travail. À ce sujet, veuillez lire la section « Exceptions » ci-dessous, qui explique la manière de traiter les cas d’exception. "]
[]
["Les périodes de paie que vous devez inclure dans l’année civile visée par la demande doivent se terminer au cours de l'année civile visée (entre le 1er janvier et le 31 décembre, inclusivement), et ce peu importe la date où elles sont payées. Par exemple, la période de paie se terminant le 31 décembre 2014 doit être comptée dans l’année civile 2014, même si elle est payée en janvier 2015.\n\n\n"]
[]
["Par conséquent, certaines années peuvent comprendre un nombre de périodes de paie plus élevé que la normale, qui est de 52 pour les employés payés à la semaine. Par exemple, en 2014, si les périodes se terminent un samedi, il est possible d'obtenir 53 périodes de paie pour un employé qui a travaillé toute l’année.\n\n"]
[]
["Par exemple, dans le cas cité au troisième paragraphe de la section « Période d'emploi » ci-dessus, Revenu Québec pourrait attribuer à une période de paie terminée avant le 4 décembre 2014 la paie de vacances payée ultérieurement en 2014 ou même en 2015."]
[]
[null,null,null," Exceptions"]
[]
[null,null,null,null,null,"a) Vacances "]
[]
["De façon générale, on doit considérer comme travaillée la période de paie durant laquelle l’employé est en vacances, quel que soit le moment où la paie de vacances est versée."]
[]
[null,null,null,null,null,"b) Assurance-emploi"]
[]
["N’est pas comptée une période de paie durant laquelle un employé reçoit de l’assurance-emploi en cas de mise à pied temporaire, de congédiement ou de licenciement (il y a rupture du lien d’emploi dans ces deux derniers cas)."]
[]
["Doit être comptée la période durant laquelle l’employé reçoit de l’assurance-emploi pour un congé parental ou un congé de maladie (dans la mesure où il n’y a pas rupture du lien d’emploi)."]
[]
[null,null,null,null,null,"c) CSST"]
[]
["Est comptée la période d’emploi durant laquelle l’employé reçoit des prestations de la CSST pour une maladie ou une invalidité temporaire."]
[]
["Si l’absence pour maladie ou invalidité est permanente, la période ne peut pas être comptée, car il y a rupture du lien d’emploi."]
[]
[null,null,null,null,null,"d) Assurance-salaire"]
[]
["Est comptée la période durant laquelle un employé reçoit des prestations d’assurance salaire versées par un tiers payeur autre que la société, dans la mesure où, encore une fois, la période d’absence est temporaire."]
[]
[null,null,null,null,null,"e) Absence de revenu"]
[]
["N’est pas comptée la période de paie durant laquelle l'employé est mis à pied temporairement sans revenu ou est en congé sans solde."]
[]
[null,"Nombre de périodes de paie admissibles"]
[]
["Pour chaque employé, indiquez le nombre de périodes de paie admissibles pour la période d’emploi visée. Est admissible une période de paie pendant laquelle l’employé a consacré au moins 75 % de son temps à des tâches admissibles. Le pourcentage est établi en tenant compte des heures supplémentaires, s'il y a lieu."]
[]
[null,"Salaire admissible"]
[]
["Pour chaque employé admissible, indiquez le montant du salaire admissible. Les renseignements recueillis par Investissement Québec à ce titre ne servent qu’à des fins statistiques puisqu’il appartient exclusivement à Revenu Québec d’en valider l’admissibilité pour le calcul du crédit d’impôt. Pour plus de précisions à ce sujet, veuillez lire la fiche technique relative à la mesure fiscale visée (dans notre site Internet)."]
[]
[null,"Salaire total pour l’année"]
[]
["Pour chaque employé, inscrivez le montant du salaire total indiqué à la case A du Relevé 1 que la société a produit ou produira à l’égard de l’employé pour l’année civile de référence."]
[]
[null,"Commentaires"]
[]
["Dans cette colonne, veuillez fournir tout renseignement additionnel susceptible de nous aider à traiter votre demande plus rapidement.\n\nPar exemple, si le nombre total de périodes travaillées diffère du nombre de périodes admissibles, indiquez brièvement pourquoi. Par exemple :"]
[]
[null,null,null,null,"• employé sur appel;\n• mise en disponibilité temporaire avec rappel prévu;\n• moins de 75 % du temps consacré à la supervision, au support ou à la réalisation d'activités admissibles pour certaines périodes (le cas échéant, veuillez fournir des feuilles de temps détaillées).\n\n"]
[]
[null,"Employé travaillant à l’extérieur du Québec"]
[]
["Si, durant une période de paie donnée, un employé a travaillé plus de 50 % du temps à l’extérieur du Québec, il n’est pas admissible à la mesure fiscale pour cette période de paie. Veuillez en faire mention dans la colonne des commentaires, s'il y a lieu."]
[]
[null,"Employé affecté à des activités de recherche et de développement (RS&DE)"]
[]
["Tel qu’il est précisé dans la fiche détaillée de la mesure fiscale, un employé qui a consacré plus de 25 % de son temps à des activités de RS&DE durant une période de paie donnée n’est pas admissible à la mesure fiscale pour cette période de paie. Le cas échéant, veuillez nous fournir les feuilles de temps utilisées dans le rapport RS&DE que vous remettrez à Revenu Québec."]
[]
["Annexe B\n\nVous devez fournir une description de tâches précisant le pourcentage de temps consacré à chaque tâche pour chacun des postes auxquels sont affectés les employés des établissements de la société situés dans les régions admissibles. "]
[]
["ENTENTE D'ÉCHANGE DE RENSEIGNEMENTS"]
["Investissement Québec et Revenu Québec ont conclu, le 7 octobre 2009, une entente intitulée « Entente portant sur l'échange de renseignements nécessaires à l'administration de mesures fiscales ou à l'application d'une loi fiscale ». Cette entente permet à chaque organisme d'échanger des renseignements essentiels à l'exercice de leurs mandats respectifs, et ce, sans qu'il soit nécessaire de demander le consentement de la personne en cause. La communication de renseignements à Revenu Québec se fait exclusivement dans le cadre de cette entente. La Commission d'accès à l'information du Québec a d'ailleurs approuvé cette entente après avoir analysé la nature des renseignements et les fins pour lesquelles ils seraient communiqués, ainsi que les moyens mis en oeuvre pour assurer la confidentialité et les mesures de sécurité prévues."]
[]
["HONORAIRES EXIGÉS"]
["Investissement Québec exige des honoraires pour les certificats et les attestations qu'elle délivre. Si vous souhaitez obtenir plus d'information à ce sujet, consultez la grille de tarification accessible dans le site Internet. "]
[]
["ADRESSES D’ENVOI ET MODE DE TRANSMISSION DU FORMULAIRE DE DEMANDE D'ATTESTATION D'EMPLOYÉS"]
["Nous vous recommandons de transmettre la demande signée par courriel électronique afin d'accélérer le traitement de votre demande. À cet effet, veuillez joindre la page dûment signée de la demande d'attestation d'employés en format PDF."]
["La demande peut également être transmise à l'une des adresses postales mentionnées ci-dessous."]
["Dans tous les cas, assurez-vous d'envoyer le fichier électronique de la demande (incluant les annexes) et les pièces jointes."]
["Les formulaires signés relatifs aux établissements situés dans les régions administratives du Bas-Saint-Laurent, de la Côte-Nord, de la Gaspésie—Îles-de-la-Madeleine, du Nord-du-Québec et du Saguenay—Lac-St-Jean doivent être envoyés à l'adresse suivante :"]
[null,"Investissement Québec\nDirection, Mesures fiscales (Québec)\nÉdifice Iberville 1\n1195, avenue Lavigerie, bureau 060\nQuébec (Québec)  G1V 4N3\nTélécopieur : 418 528-8480"]
[]
[" -","par courriel à l’adresse suivante : mfquebec@invest-quebec.com"]
[]
["Les formulaires signés relatifs aux établissements situés dans les régions administratives de l’Abitibi-Témiscamingue, de la Mauricie, et dans les MRC Antoine-Labelle, Pontiac et Vallée-de-la-Gatineau doivent être envoyés à l’adresse suivante :"]
[null,"Investissement Québec\nDirection, Mesures fiscales (Montréal)\n1001, boulevard Robert-Bourassa, bureau 1000\nMontréal (Québec) H3B 4L4\nFax: 514 864-7933"]
[]
[" -","par courriel à l’adresse suivante : mfmontreal@invest-quebec.com"]

{"sheet":"Demande d'attestation","index":1,"n_rows":90,"n_cols":36,"rows_kept":90,"cut":false,"hidden":false,"merged":[[38,0,38,25],[56,31,56,37],[48,22,48,27],[48,9,48,12],[38,35,38,37],[55,0,55,16],[48,29,48,30],[50,0,50,37],[46,0,46,37],[47,0,47,37],[48,13,48,14],[39,0,39,37],[40,0,40,33],[41,0,41,25],[41,26,41,33],[42,0,42,25],[42,27,42,32],[42,35,42,37],[43,0,43,25],[43,27,43,34],[43,35,43,37],[44,0,44,25],[44,27,44,33],[54,0,54,37],[30,0,30,37],[17,0,17,37],[33,0,33,37],[36,0,36,37],[26,0,26,37],[19,0,19,7],[19,10,19,17],[19,20,19,27],[24,26,24,37],[34,27,34,34],[34,35,34,37],[35,35,35,37],[28,26,28,37],[18,0,18,7],[18,10,18,17],[24,0,24,25],[27,0,27,25],[22,0,22,37],[70,0,70,33],[71,1,71,34],[72,1,72,34],[73,1,73,34],[57,31,57,37],[57,17,57,23],[49,0,49,37],[56,0,56,16],[45,0,45,25],[45,27,45,34],[56,24,56,30],[48,15,48,21],[55,17,55,23],[58,24,58,30],[58,17,58,23],[48,0,48,8],[55,24,55,30],[56,17,56,23],[57,24,57,30],[74,1,74,37],[75,1,75,37],[16,0,16,37],[15,0,15,37],[28,0,28,25],[32,0,32,25],[31,0,31,37],[29,26,29,37],[32,26,32,37],[29,0,29,25],[35,0,35,25],[35,27,35,34],[34,0,34,25],[55,31,55,37],[59,31,59,37],[58,31,58,37],[58,1,58,16],[59,17,59,23],[57,1,57,16],[25,0,25,37],[23,0,23,37],[19,30,19,37],[38,27,38,34],[69,1,69,30],[89,29,89,37],[80,0,80,37],[88,0,88,20],[88,29,88,37],[88,21,88,28],[89,0,89,20],[89,21,89,28],[78,0,78,37],[79,0,79,37],[83,1,83,33],[84,0,84,33],[85,1,85,33],[86,0,86,33],[87,0,87,33],[81,0,81,37],[82,0,82,37],[8,1,8,37],[9,23,9,37],[10,0,10,37],[11,1,11,37],[9,1,9,20],[48,31,48,37],[37,35,37,37],[37,27,37,34],[0,0,0,12],[4,0,4,37],[1,0,1,37],[0,13,0,37],[2,0,2,37],[14,0,14,37],[13,0,13,37],[6,0,6,37],[3,0,3,37],[5,0,5,37],[7,1,7,21],[7,23,7,37],[18,20,18,27],[18,30,18,37],[27,26,27,37],[37,0,37,25],[76,0,76,37],[77,0,77,37],[12,0,12,37],[20,0,20,37],[21,0,21,37],[51,0,51,37],[53,0,53,37],[64,1,64,34],[65,0,65,33],[63,0,63,37],[61,31,61,37],[60,17,60,23],[60,24,60,30],[60,31,60,37],[60,1,60,16],[59,1,59,16],[61,24,61,30],[62,0,62,37],[59,24,59,30],[61,0,61,16],[61,17,61,23],[66,1,66,34],[67,0,67,33],[68,1,68,34]]}
[null,null,null,null,null,null,null,null,null,null,null,null,null,"Crédits d’impôt disponibles dans\n les régions ressources\nVersion : 2023-09-22"]
[]
["Demande d'attestation d'employés\npour l'année civile de référence"]
["Avant de remplir le formulaire, veuillez lire les directives."]
["1. CRÉDIT(S) D'IMPÔT REMBOURSABLE(S) VISÉ(S)"]
["Une seule demande doit être présentée pour l'ensemble des activités admissibles que la société a réalisées au cours de l'année civile faisant l'objet de cette demande."]
[]
[null,"Activités de transformation dans les régions ressources (RR)"]
[null," "]
[null,"Gaspésie et certaines régions maritimes du Québec (GAS)"]
[]
[null,"Vallée de l'aluminium"]
[]
["2. IDENTIFICATION DE LA SOCIÉTÉ "]
[]
["Nom de la société"]
[]
[]
["NEQ",null,null,null,null,null,null,null,null,null,"Numéro d'entreprise IQ*",null,null,null,null,null,null,null,null,null,"Numéro de dossier IQ*",null,null,null,null,null,null,null,null,null,"Date d'incorporation"]
[]
[]
["Il s'agit du numéro d'entreprise ou de dossier attribué par Investissement Québec (IQ) relatif au(x) crédit(s) d'impôt dans les régions. Non requis lors de la première demande. Dans le cas d'une deuxième demande, vous retracerez ces numéros sur la correspondance d'IQ."]
[]
["Adresse du site Internet "]
[]
[]
["Adresse de correspondance"]
[]
[]
[]
[]
["Représentant autorisé de la société"]
[]
[]
["Titre du représentant",null,null,null,null,null,null,null,null,null,null,null,null,null,null,null,null,null,null,null,null,null,null,null,null,null,null,"Téléphone",null,null,null,null,null,null,null,"Poste"]
[]
[]
["Adresse de courriel",null,null,null,null,null,null,null,null,null,null,null,null,null,null,null,null,null,null,null,null,null,null,null,null,null,null,"Télécopieur"]
[]
[]
["Mandataire autorisé de la société (le cas échéant)"]
[]
["Titre du mandataire",null,null,null,null,null,null,null,null,null,null,null,null,null,null,null,null,null,null,null,null,null,null,null,null,null,null,"Téléphone",null,null,null,null,null,null,null,"Poste"]
[]
["Adresse de courriel du mandataire",null,null,null,null,null,null,null,null,null,null,null,null,null,null,null,null,null,null,null,null,null,null,null,null,null,null,"Télécopieur"]
[]
[]
["3. ANNÉE CIVILE DE RÉFÉRENCE ET EXERCICE FINANCIER VISÉS PAR LA DEMANDE D'ATTESTATION"]
["Année civile de référence :",null,null,null,null,null,null,null,null,null,null,null,null,null,null,"Exercice financier du :",null,null,null,null,null,null,null,null,null,null,null,null,null,"au :"]
[]
["4. RENSEIGNEMENTS SUR LES EMPLOYÉS"]
["Ces renseignements doivent porter sur tous les employés de la société se rattachant à chacun des établissements de la société situés au Québec. Pour chacun de ces établissements, le nombre d’employés doit inclure tous les employés de l’établissement, qu’ils soient admissibles ou non, qu’ils travaillent à temps plein, à temps partiel, de façon saisonnière ou qu’ils aient été à l’emploi de la société pour toute l’année ou pour une période plus courte. Il en est de même pour le nombre d’heures travaillées, qui doit inclure toutes les heures travaillées : heures régulières, heures supplémentaires, vacances et congés fériés."]
[]
["L’information relative à la masse salariale versée aux employés doit correspondre au montant total assujetti au Fonds des services de santé (FSS), tel qu’il est indiqué à la ligne 28 du Sommaire des retenues et des cotisations de l’employeur de l’année civile visée."]
["Indiquer le nombre total d'employés de la société pour tous les établissements situés au Québec au cours de l'année civile de référence"]
[null,null,null,null,null,null,null,null,null,null,null,null,null,null,null,null,null,null,null,null,null,null,null,null,"Nombre total"]
["Adresse de l'établissement",null,null,null,null,null,null,null,null,null,null,null,null,null,null,null,null,"Nombre total d'employés",null,null,null,null,null,null,"d'heures travaillées",null,null,null,null,null,null,"Masse salariale"]
[1]
[2]
[3]
[4]
["Total",null,null,null,null,null,null,null,null,null,null,null,null,null,null,null,null,{"$f":"SUM(R58:X61)","v":0},null,null,null,null,null,null,{"$f":"SUM(Y58:AE61)","v":0},null,null,null,null,null,null,{"$f":"SUM(AF58:AL61)","v":0}]
[]
["5. DOCUMENTS À JOINDRE À LA DEMANDE D'ATTESTATION"]
["—  ","Copie des états financiers1 non consolidés de la société pour l'exercice financier visé par la présente demande;"]
[]
["—  ","Organigramme présentant les liens hiérarchiques des différents types d'emplois;"]
[]
["—  ","Sommaire des retenues et des cotisations de l'employeur (Sommaire des relevés 1) pour l'année civile"]
[null,"d'admissibilité et l'année civile de référence, si cela n'a pas déjà été fait;"]
[]
["—  ","Procuration, dûment signée, désignant un mandataire pour représenter la société auprès d'Investissement"]
[null,"Québec ( à fournir seulement si vous ne l'avez pas déjà produite). Vous pouvez vous inspirer du modèle publié "]
[null,"sur le site d'Investissement Québec http://www.investquebec.com/documents/fr/formulaires/Procuration_fr.doc"]
[null,"Dans l'éventualité où les documents ne sont pas joints, veuillez indiquer la raison."]
[]
[]
["1 Les états financiers peuvent être à l'état de projet à condition que vous nous fassiez parvenir une version finale des états financiers dès qu'ils seront disponibes."]
[]
["6. DÉCLARATION DU REPRÉSENTANT AUTORISÉ DE LA SOCIÉTÉ"]
["Je, soussigné(e), représentant(e) dûment autorisé(e) de la société, déclare que les renseignements fournis dans la présente demande, y compris les annexes A et B et les documents afférents, sont complets et véridiques en tous points et m'engage à fournir au représentant d'Investissement Québec toute l'information nécessaire à l'analyse de la présente demande. "]
["De plus, sauf indication contraire expresse à cet effet, j’autorise Investissement Québec à utiliser les renseignements obtenus dans le cadre de cette demande et pouvant s’avérer nécessaires à l’analyse de toute demande de financement, d’investissement ou à l’égard de tout autre service offert par Investissement Québec."]
["Enfin, je soussigné(e), représentant(e) ou mandataire dûment autorisé(e) de la société, représente et garantis à Investissement Québec que la société a obtenu, conformément à la loi, tous les consentements requis des personnes concernées par les renseignements personnels divulgués en lien avec cette demande et qui sont nécessaires afin qu’Investissement Québec puisse les utiliser, les communiquer à Revenu Québec ou aux prestataires de services ou partenaires d'Investissement Québec si nécessaire, les transférer hors Québec si applicable, le tout, aux fins de traiter la demande de la société."]
[null," J'autorise le partage des renseignements"]
[]
[null," Je n'autorise pas le partage des renseignements"]
[]
["Enfin, je certifie que la société n'a pas modifié le contenu de la présente demande."]
[]
["Signature du représentant ou mandataire autorisé de la société",null,null,null,null,null,null,null,null,null,null,null,null,null,null,null,null,null,null,null,null,null,null,null,null,null,null,null,null,"Date"]

{"sheet":"Annexe A","index":2,"n_rows":33,"n_cols":27,"rows_kept":33,"cut":false,"hidden":false,"merged":[[18,1,21,1],[18,2,21,2],[18,3,21,3],[18,8,21,8],[18,9,21,9],[12,8,12,9],[0,0,0,2],[18,7,21,7],[14,0,14,10],[15,0,15,10],[0,3,0,10],[9,0,9,10],[16,4,16,6],[16,0,16,3],[1,0,1,10],[18,10,21,10],[18,6,21,6],[18,4,20,5],[16,7,16,10],[17,0,17,10],[18,0,21,0],[2,0,2,10],[4,0,4,10],[6,0,6,10],[10,1,10,2],[10,9,10,10],[7,1,7,5],[8,1,8,5],[7,7,7,8],[5,1,5,4],[10,7,10,8],[3,0,3,10]]}
[null,null,null,"Version : 2023-09-22"]
["Annexe A - Demande d'attestation d'employés pour l'année civile de référence"]
["(L'Annexe A fait partie intégrante de la présente demande.)"]
["Avant de remplir la présente annexe, veuillez lire les directives."]
["Crédit(s) d'impôt remboursable(s) visé(s)"]
[]
[]
[null,"Nom de la société",null,null,null,null,null,"Numéro de dossier IQ",null,"NEQ"]
[null,{"$f":"IF('Demande d''attestation'!A17=\"\",\"\",'Demande d''attestation'!A17)","v":""},null,null,null,null,null,{"$f":"IF('Demande d''attestation'!U20=\"\",\"\",'Demande d''attestation'!U20)","v":""},null,{"$f":"IF('Demande d''attestation'!A20=\"\",\"\",'Demande d''attestation'!A20)","v":""}]
[]
[null,"Année civile de référence visée",null,"Exercice financier","du",null,"au",null,null,"Numéro d'entreprise IQ"]
[null,{"$f":"IF('Demande d''attestation'!J49=\"\",\"\",'Demande d''attestation'!J49)","v":""},null,null,{"$f":"IF('Demande d''attestation'!W49=\"\",\"\",'Demande d''attestation'!W49)","v":""},null,{"$f":"IF('Demande d''attestation'!AF49=\"\",\"\",'Demande d''attestation'!AF49)","v":""},null,null,{"$f":"IF('Demande d''attestation'!K20=\"\",\"\",'Demande d''attestation'!K20)","v":""}]
[null,"(aaaa)",null,null,"(aaaa-mm-jj)",null,"(aaaa-mm-jj)"]
[]
["Veuillez compléter les champs de l'exercice financier avant ceux du tableau ci-dessous."]
[]
["Type de périodes de paie (p. ex.: par semaine, quinzaine, mois ou bi-mensuelle)"]
[]
["Nom de l'employé\nComme suit :                                Nom(1 espace)Prénom","N.A.S.\n999-999-999","Poste (Pour chacun de ces postes, complétez l'annexe B)\nExemple :                                                  Opérateur de machinerie lourde","Établissement (adresse)\ncomme suit :                                                999, rue XXXXXXXXX, bureau 99 Ville (Québec) X9X 9X9","Période d'emploi pendant l'année civile de référence",null,"Nombre total de \npériode de paie travaillées","Nombre de périodes de paie admissibles"," Salaire total pour l'année\nExemple :                     45 550,00","Salaire admissible\nExemple : \n35 550,00","Commentaires"]
[]
[]
[null,null,null,null,"Du :                           (aaaa-mm-jj)","Au :                                     (aaaa-mm-jj)"]
[null,null,null,null,null,null,null,null,null,null,null,null,null,null,null,null,null,null,null,null,null,null,null,null,null,null,{"$f":"IF(ISBLANK($F23),AND($E23>=DATE($B$12,1,1),$E23<=DATE($B$12,12,31)),AND($E23>=DATE($B$12,1,1),$E23<=DATE($B$12,12,31),$E23<=$F23))","v":{"$error":"#VALUE!"}}]
[null,null,null,null,null,null,null,null,null,null,null,null,null,null,null,null,null,null,null,null,null,null,null,null,null,null,{"$f":"IF(ISBLANK($F24),AND($E24>=DATE($B$12,1,1),$E24<=DATE($B$12,12,31)),AND($E24>=DATE($B$12,1,1),$E24<=DATE($B$12,12,31),$E24<=$F24))","v":{"$error":"#VALUE!"}}]
[null,null,null,null,null,null,null,null,null,null,null,null,null,null,null,null,null,null,null,null,null,null,null,null,null,null,{"$error":"#VALUE!"}]
[null,null,null,null,null,null,null,null,null,null,null,null,null,null,null,null,null,null,null,null,null,null,null,null,null,null,{"$error":"#VALUE!"}]
[null,null,null,null,null,null,null,null,null,null,null,null,null,null,null,null,null,null,null,null,null,null,null,null,null,null,{"$error":"#VALUE!"}]
[null,null,null,null,null,null,null,null,null,null,null,null,null,null,null,null,null,null,null,null,null,null,null,null,null,null,{"$error":"#VALUE!"}]
[null,null,null,null,null,null,null,null,null,null,null,null,null,null,null,null,null,null,null,null,null,null,null,null,null,null,{"$error":"#VALUE!"}]
[null,null,null,null,null,null,null,null,null,null,null,null,null,null,null,null,null,null,null,null,null,null,null,null,null,null,{"$error":"#VALUE!"}]
[null,null,null,null,null,null,null,null,null,null,null,null,null,null,null,null,null,null,null,null,null,null,null,null,null,null,{"$error":"#VALUE!"}]
[null,null,null,null,null,null,null,null,null,null,null,null,null,null,null,null,null,null,null,null,null,null,null,null,null,null,{"$error":"#VALUE!"}]
[null,null,null,null,null,null,null,null,null,null,null,null,null,null,null,null,null,null,null,null,null,null,null,null,null,null,{"$error":"#VALUE!"}]

{"sheet":"Annexe B","index":3,"n_rows":51,"n_cols":42,"rows_kept":51,"cut":false,"hidden":false,"merged":[[7,0,7,4],[8,0,8,4],[9,0,9,4],[5,25,5,27],[10,0,10,4],[6,0,6,4],[3,0,3,4],[4,0,4,4],[5,0,5,1],[5,2,5,4],[0,2,0,4],[1,0,1,4],[2,0,2,4],[50,0,50,4],[15,2,15,4],[11,0,11,2],[14,0,14,2],[13,0,13,2],[16,2,16,4],[20,0,20,1],[18,1,18,4],[17,0,17,4],[15,0,15,1],[20,2,20,3],[12,0,12,2],[49,0,49,1]]}
[null,null,"Version : 2023-09-22"]
["Annexe B - Demande d'attestation d'employés"]
["pour l'année civile de référence"]
["(L'Annexe B fait partie intégrante de la présente demande.)\n\nAvant de remplir la présente annexe, veuillez lire les directives. (Veuillez fournir les renseignements demandés pour tous les employés (admissibles ou non) des établissements.)"]
["CRÉDIT(S) D'IMPÔT REMBOURSABLE(S) VISÉ(S)"]
[]
[]
["Utilisez une Annexe B par poste. Toutefois, si les responsabilités et les tâches de plusieurs employés sont en tout point identiques pour l'année civile de référence, utilisez une seule annexe en indiquant les employés visés à la ligne « Titulaire(s) »."]
["Pour plus de détails, consultez nos « Directives relatives aux descriptions de tâches dans les demandes d'attestations d'admissibilité » sur notre site Internet à l'adresse suivante : http://www.investquebec.com/documents/fr/publications/NouvellesLignesDirectrices_MesuresFiscales.pdf"]
["La description de poste comprend l'ensemble des responsabilités et tâches réalisées par l'employé au sein de la société."]
[]
["Nom de la société",null,null,null,"Numéro de dossier IQ "]
[{"$f":"IF('Demande d''attestation'!A17=\"\",\"\",'Demande d''attestation'!A17)","v":""},null,null,null,{"$f":"IF('Demande d''attestation'!U20=\"\",\"\",'Demande d''attestation'!U20)","v":""}]
[" ",null,null,null,"Année civile de référence"]
[" ",null,null,null,{"$f":"IF('Demande d''attestation'!L49=\"\",\"\",'Demande d''attestation'!L49)","v":""}]
["Titre du poste ",null,"Supérieur immédiat "]
[]
["Titulaire(s)"]
[]
[]
["Description détaillée des responsabilités et tâches",null,"Temps consacré à\nces activités (%)",null,"Réservé à IQ"]
[null,null,null,null,null,null,null,null,null,null,null,null,null,null,null,null,null,null,null,null,null,null,null,null,null,null,null,null,null,null,null,null,null,null,null,null,null,null,null,null,null,{"$f":"A22","v":0}]
[null,null,null,null,null,null,null,null,null,null,null,null,null,null,null,null,null,null,null,null,null,null,null,null,null,null,null,null,null,null,null,null,null,null,null,null,null,null,null,null,null,{"$f":"A23","v":0}]
[null,null,null,null,null,null,null,null,null,null,null,null,null,null,null,null,null,null,null,null,null,null,null,null,null,null,null,null,null,null,null,null,null,null,null,null,null,null,null,null,null,0]
[null,null,null,null,null,null,null,null,null,null,null,null,null,null,null,null,null,null,null,null,null,null,null,null,null,null,null,null,null,null,null,null,null,null,null,null,null,null,null,null,null,0]
[null,null,null,null,null,null,null,null,null,null,null,null,null,null,null,null,null,null,null,null,null,null,null,null,null,null,null,null,null,null,null,null,null,null,null,null,null,null,null,null,null,0]
[null,null,null,null,null,null,null,null,null,null,null,null,null,null,null,null,null,null,null,null,null,null,null,null,null,null,null,null,null,null,null,null,null,null,null,null,null,null,null,null,null,0]
[null,null,null,null,null,null,null,null,null,null,null,null,null,null,null,null,null,null,null,null,null,null,null,null,null,null,null,null,null,null,null,null,null,null,null,null,null,null,null,null,null,0]
[null,null,null,null,null,null,null,null,null,null,null,null,null,null,null,null,null,null,null,null,null,null,null,null,null,null,null,null,null,null,null,null,null,null,null,null,null,null,null,null,null,{"$f":"A29","v":0}]
[null,null,null,null,null,null,null,null,null,null,null,null,null,null,null,null,null,null,null,null,null,null,null,null,null,null,null,null,null,null,null,null,null,null,null,null,null,null,null,null,null,0]
[null,null,null,null,null,null,null,null,null,null,null,null,null,null,null,null,null,null,null,null,null,null,null,null,null,null,null,null,null,null,null,null,null,null,null,null,null,null,null,null,null,0]
[null,null,null,null,null,null,null,null,null,null,null,null,null,null,null,null,null,null,null,null,null,null,null,null,null,null,null,null,null,null,null,null,null,null,null,null,null,null,null,null,null,0]
[null,null,null,null,null,null,null,null,null,null,null,null,null,null,null,null,null,null,null,null,null,null,null,null,null,null,null,null,null,null,null,null,null,null,null,null,null,null,null,null,null,0]
[null,null,null,null,null,null,null,null,null,null,null,null,null,null,null,null,null,null,null,null,null,null,null,null,null,null,null,null,null,null,null,null,null,null,null,null,null,null,null,null,null,0]
[null,null,null,null,null,null,null,null,null,null,null,null,null,null,null,null,null,null,null,null,null,null,null,null,null,null,null,null,null,null,null,null,null,null,null,null,null,null,null,null,null,0]
[null,null,null,null,null,null,null,null,null,null,null,null,null,null,null,null,null,null,null,null,null,null,null,null,null,null,null,null,null,null,null,null,null,null,null,null,null,null,null,null,null,0]
[null,null,null,null,null,null,null,null,null,null,null,null,null,null,null,null,null,null,null,null,null,null,null,null,null,null,null,null,null,null,null,null,null,null,null,null,null,null,null,null,null,{"$f":"A37","v":0}]
[null,null,null,null,null,null,null,null,null,null,null,null,null,null,null,null,null,null,null,null,null,null,null,null,null,null,null,null,null,null,null,null,null,null,null,null,null,null,null,null,null,0]
[null,null,null,null,null,null,null,null,null,null,null,null,null,null,null,null,null,null,null,null,null,null,null,null,null,null,null,null,null,null,null,null,null,null,null,null,null,null,null,null,null,0]
[null,null,null,null,null,null,null,null,null,null,null,null,null,null,null,null,null,null,null,null,null,null,null,null,null,null,null,null,null,null,null,null,null,null,null,null,null,null,null,null,null,0]
[null,null,null,null,null,null,null,null,null,null,null,null,null,null,null,null,null,null,null,null,null,null,null,null,null,null,null,null,null,null,null,null,null,null,null,null,null,null,null,null,null,0]
[null,null,null,null,null,null,null,null,null,null,null,null,null,null,null,null,null,null,null,null,null,null,null,null,null,null,null,null,null,null,null,null,null,null,null,null,null,null,null,null,null,0]
[null,null,null,null,null,null,null,null,null,null,null,null,null,null,null,null,null,null,null,null,null,null,null,null,null,null,null,null,null,null,null,null,null,null,null,null,null,null,null,null,null,0]
[null,null,null,null,null,null,null,null,null,null,null,null,null,null,null,null,null,null,null,null,null,null,null,null,null,null,null,null,null,null,null,null,null,null,null,null,null,null,null,null,null,{"$f":"A44","v":0}]
[null,null,null,null,null,null,null,null,null,null,null,null,null,null,null,null,null,null,null,null,null,null,null,null,null,null,null,null,null,null,null,null,null,null,null,null,null,null,null,null,null,0]
[null,null,null,null,null,null,null,null,null,null,null,null,null,null,null,null,null,null,null,null,null,null,null,null,null,null,null,null,null,null,null,null,null,null,null,null,null,null,null,null,null,0]
[null,null,null,null,null,null,null,null,null,null,null,null,null,null,null,null,null,null,null,null,null,null,null,null,null,null,null,null,null,null,null,null,null,null,null,null,null,null,null,null,null,0]
[null,null,null,null,null,null,null,null,null,null,null,null,null,null,null,null,null,null,null,null,null,null,null,null,null,null,null,null,null,null,null,null,null,null,null,null,null,null,null,null,null,0]
[null,null,null,null,null,null,null,null,null,null,null,null,null,null,null,null,null,null,null,null,null,null,null,null,null,null,null,null,null,null,null,null,null,null,null,null,null,null,null,null,null,0]
["Total (doit correspondre à 100 %) :",null,{"$f":"SUM(C22:C49)","v":0},"%",null,null,null,null,null,null,null,null,null,null,null,null,null,null,null,null,null,null,null,null,null,null,null,null,null,null,null,null,null,null,null,null,null,null,null,null,null,"Total (doit correspondre à 100 %) :"]
["La description des responsabilités et des tâches est conforme à la réalité et ne comporte ni ajout ni retrait aux responsabilités et aux tâches du ou des titulaires pendant l'année civile de référence."]